[Event "*** Titled Tuesday Blitz"]
[Site "Chess.com"]
[Date "2020.02.04"]
[Round "2"]
[White "Raspadsistema"]
[Black "Supernotar"]
[Result "1-0"]
[WhiteElo "2809"]
[BlackElo "2546"]
[TimeControl "180+2"]
[EndTime "13:24:31 PST"]
[Termination "Raspadsistema won by checkmate"]

1. e4 {[%clk 0:03:01.9]} 1... c6 {[%clk 0:03:00.6]} 2. d4 {[%clk 0:02:55.8]}
2... d5 {[%clk 0:03:01.7]} 3. e5 {[%clk 0:02:57.2]} 3... Bf5 {[%clk 0:03:02.3]}
4. h4 {[%clk 0:02:58.1]} 4... h5 {[%clk 0:03:01.9]} 5. c4 {[%clk 0:02:58.5]}
5... e6 {[%clk 0:03:02.6]} 6. Nc3 {[%clk 0:02:59.8]} 6... Ne7 {[%clk 0:02:59.1]}
7. Nge2 {[%clk 0:03:00.9]} 7... Nd7 {[%clk 0:02:56.5]} 8. Ng3 {[%clk 0:03:02.2]}
8... Bg6 {[%clk 0:02:57.6]} 9. Bg5 {[%clk 0:03:03.6]} 9... Qb6 {[%clk
0:02:48.3]} 10. Rc1 {[%clk 0:03:04.4]} 10... dxc4 {[%clk 0:02:47.3]} 11. Bxc4
{[%clk 0:03:04.9]} 11... Nd5 {[%clk 0:02:47.2]} 12. Bxd5 {[%clk 0:03:05.6]}
12... cxd5 {[%clk 0:02:44.7]} 13. O-O {[%clk 0:03:07.2]} 13... f6 {[%clk
0:02:26.7]} 14. exf6 {[%clk 0:03:01]} 14... gxf6 {[%clk 0:02:27.5]} 15. Be3
{[%clk 0:03:02]} 15... Bd6 {[%clk 0:02:26]} 16. Qf3 {[%clk 0:02:51.7]} 16... Kf7
{[%clk 0:02:22.8]} 17. Nce2 {[%clk 0:02:33.8]} 17... Rag8 {[%clk 0:02:05.8]} 18.
Bf4 {[%clk 0:02:32.9]} 18... Rg7 {[%clk 0:01:33.6]} 19. Bxd6 {[%clk 0:02:25.9]}
19... Qxd6 {[%clk 0:01:34.2]} 20. Nf4 {[%clk 0:02:27.6]} 20... Rhg8 {[%clk
0:00:59.9]} 21. Rfe1 {[%clk 0:02:26.1]} 21... Nf8 {[%clk 0:01:00.1]} 22. Rc3
{[%clk 0:01:43.1]} 22... Be4 {[%clk 0:00:34.4]} 23. Nxe4 {[%clk 0:01:08.5]}
23... dxe4 {[%clk 0:00:35.4]} 24. Rxe4 {[%clk 0:00:57.9]} 24... Rg4 {[%clk
0:00:33.3]} 25. g3 {[%clk 0:00:50.2]} 25... f5 {[%clk 0:00:32.9]} 26. Re5 {[%clk
0:00:32.2]} 26... Qxd4 {[%clk 0:00:33.6]} 27. Qxb7+ {[%clk 0:00:24.1]} 27... Kf6
{[%clk 0:00:29.6]} 28. Nxh5+ {[%clk 0:00:17.1]} 28... Kxe5 {[%clk 0:00:21.7]}
29. Qc7+ {[%clk 0:00:11.6]} 29... Qd6 {[%clk 0:00:22.4]} 30. f4+ {[%clk
0:00:10.5]} 30... Rxf4 {[%clk 0:00:21.2]} 31. Rc5+ {[%clk 0:00:11.6]} 31... Ke4
{[%clk 0:00:16.3]} 32. Qxd6 {[%clk 0:00:13.2]} 32... Rf3 {[%clk 0:00:13.9]} 33.
Qe5+ {[%clk 0:00:14.2]} 33... Kd3 {[%clk 0:00:14.9]} 34. Rc3+ {[%clk 0:00:15.7]}
34... Kd2 {[%clk 0:00:16.4]} 35. Rxf3 {[%clk 0:00:16]} 35... Nd7 {[%clk
0:00:17]} 36. Qc3+ {[%clk 0:00:17.1]} 36... Kd1 {[%clk 0:00:17.4]} 37. Rf1+
{[%clk 0:00:18]} 37... Ke2 {[%clk 0:00:18.6]} 38. Nf4# {[%clk 0:00:19.5]} 1-0

[Event "*** Titled Tuesday Blitz"]
[Site "Chess.com"]
[Date "2020.02.04"]
[Round "2"]
[White "bsnsun"]
[Black "Borsuk_Konstantin"]
[Result "1-0"]
[WhiteElo "2369"]
[BlackElo "2523"]
[TimeControl "180+2"]
[EndTime "13:24:32 PST"]
[Termination "bsnsun won by resignation"]

1. Nf3 {[%clk 0:03:01.1]} 1... Nf6 {[%clk 0:02:57.9]} 2. c4 {[%clk 0:03:02.2]}
2... e6 {[%clk 0:02:57.9]} 3. d4 {[%clk 0:03:03.3]} 3... b6 {[%clk 0:02:58.2]}
4. g3 {[%clk 0:03:03.7]} 4... Bb7 {[%clk 0:02:59.7]} 5. Bg2 {[%clk 0:03:05]}
5... Be7 {[%clk 0:03:01.3]} 6. O-O {[%clk 0:03:04.9]} 6... O-O {[%clk
0:03:02.4]} 7. d5 {[%clk 0:03:00]} 7... Na6 {[%clk 0:03:02.9]} 8. Nc3 {[%clk
0:03:00.1]} 8... Bb4 {[%clk 0:03:03.5]} 9. Qc2 {[%clk 0:02:42.4]} 9... d6 {[%clk
0:02:37.3]} 10. a3 {[%clk 0:02:08.9]} 10... Bxc3 {[%clk 0:02:37.7]} 11. Qxc3
{[%clk 0:02:10.3]} 11... exd5 {[%clk 0:02:24.7]} 12. Nh4 {[%clk 0:02:09]} 12...
Ne4 {[%clk 0:02:06.6]} 13. Qc2 {[%clk 0:01:56.8]} 13... Re8 {[%clk 0:01:48.4]}
14. cxd5 {[%clk 0:01:54.9]} 14... Bxd5 {[%clk 0:01:46.9]} 15. b4 {[%clk
0:01:55.8]} 15... Nb8 {[%clk 0:01:31.5]} 16. Bb2 {[%clk 0:01:52]} 16... f6
{[%clk 0:01:20.7]} 17. Rac1 {[%clk 0:01:49.1]} 17... c6 {[%clk 0:01:14.3]} 18.
Rfd1 {[%clk 0:01:35.9]} 18... b5 {[%clk 0:01:02.9]} 19. f3 {[%clk 0:01:12.7]}
19... Ng5 {[%clk 0:01:02.3]} 20. e4 {[%clk 0:01:13.6]} 20... Bc4 {[%clk
0:01:01.4]} 21. f4 {[%clk 0:01:14.7]} 21... Nf7 {[%clk 0:00:58.5]} 22. Nf5
{[%clk 0:01:14.9]} 22... Qc7 {[%clk 0:00:48.9]} 23. Qd2 {[%clk 0:01:01.5]} 23...
Rd8 {[%clk 0:00:44.3]} 24. Qd4 {[%clk 0:01:02.5]} 24... c5 {[%clk 0:00:42]} 25.
bxc5 {[%clk 0:01:02.2]} 25... dxc5 {[%clk 0:00:41.6]} 26. Qc3 {[%clk 0:00:59.9]}
26... Rxd1+ {[%clk 0:00:30.5]} 27. Rxd1 {[%clk 0:01:00.5]} 27... Nd7 {[%clk
0:00:31.3]} 28. e5 {[%clk 0:00:54.7]} 28... Re8 {[%clk 0:00:25.9]} 29. exf6
{[%clk 0:00:55.4]} 29... gxf6 {[%clk 0:00:26.7]} 30. h3 {[%clk 0:00:49.1]} 30...
Re6 {[%clk 0:00:18.7]} 31. Re1 {[%clk 0:00:39.1]} 31... Qb6 {[%clk 0:00:17.3]}
32. Rd1 {[%clk 0:00:36.4]} 32... Qc7 {[%clk 0:00:16.8]} 33. Kh2 {[%clk
0:00:37.3]} 33... a5 {[%clk 0:00:17.2]} 34. a4 {[%clk 0:00:37.6]} 34... h6
{[%clk 0:00:15.7]} 35. axb5 {[%clk 0:00:38.7]} 35... Bxb5 {[%clk 0:00:16.8]} 36.
Bd5 {[%clk 0:00:40]} 36... Ra6 {[%clk 0:00:16.8]} 37. Nxh6+ {[%clk 0:00:39.2]}
37... Kg7 {[%clk 0:00:17]} 38. Nxf7 {[%clk 0:00:40.3]} 38... a4 {[%clk
0:00:18.4]} 39. Ng5 {[%clk 0:00:39.9]} 39... Nf8 {[%clk 0:00:16.6]} 40. Ne6+
{[%clk 0:00:39.2]} 1-0

[Event "*** Titled Tuesday Blitz"]
[Site "Chess.com"]
[Date "2020.02.04"]
[Round "2"]
[White "ChessBitl"]
[Black "Poghosyan_Suren"]
[Result "0-1"]
[WhiteElo "2374"]
[BlackElo "2665"]
[TimeControl "180+2"]
[EndTime "13:24:33 PST"]
[Termination "Poghosyan_Suren won by resignation"]

1. e4 {[%clk 0:03:00.7]} 1... e6 {[%clk 0:03:00.2]} 2. d4 {[%clk 0:03:00.1]}
2... d5 {[%clk 0:03:01.1]} 3. Nd2 {[%clk 0:03:01.7]} 3... Nc6 {[%clk 0:02:59.8]}
4. c3 {[%clk 0:02:57.9]} 4... e5 {[%clk 0:03:00.2]} 5. exd5 {[%clk 0:02:53.6]}
5... Qxd5 {[%clk 0:03:02.1]} 6. Ngf3 {[%clk 0:02:55.1]} 6... exd4 {[%clk
0:03:02.5]} 7. cxd4 {[%clk 0:02:51]} 7... Nxd4 {[%clk 0:02:56]} 8. Nxd4 {[%clk
0:02:46]} 8... Qxd4 {[%clk 0:02:55.8]} 9. Be2 {[%clk 0:02:43.8]} 9... Nf6 {[%clk
0:02:53.6]} 10. O-O {[%clk 0:02:43.6]} 10... Bd6 {[%clk 0:02:50.8]} 11. Qc2
{[%clk 0:02:31.5]} 11... O-O {[%clk 0:02:48.1]} 12. Nf3 {[%clk 0:02:32.5]} 12...
Qc5 {[%clk 0:02:45.1]} 13. Qb3 {[%clk 0:02:25.7]} 13... Qh5 {[%clk 0:02:39.9]}
14. h3 {[%clk 0:02:16.1]} 14... Re8 {[%clk 0:02:24]} 15. Be3 {[%clk 0:02:16.3]}
15... Bxh3 {[%clk 0:02:22.3]} 16. gxh3 {[%clk 0:02:02.2]} 16... Qxh3 {[%clk
0:02:21.8]} 17. Rad1 {[%clk 0:01:58.2]} 17... Qg4+ {[%clk 0:02:10.1]} 18. Kh1
{[%clk 0:01:56.1]} 18... Qh5+ {[%clk 0:02:08.1]} 19. Kg2 {[%clk 0:01:56.9]}
19... Re4 {[%clk 0:02:04.4]} 20. Ng5 {[%clk 0:01:19.8]} 20... Rg4+ {[%clk
0:02:03.9]} 21. Bxg4 {[%clk 0:01:19.4]} 21... Qxg4+ {[%clk 0:02:05.8]} 22. Kh1
{[%clk 0:01:19.2]} 22... Qh5+ {[%clk 0:01:01.5]} 23. Kg2 {[%clk 0:01:20.2]}
23... Ng4 {[%clk 0:01:02.5]} 24. Rh1 {[%clk 0:01:17.6]} 24... Nxe3+ {[%clk
0:01:01.1]} 25. Qxe3 {[%clk 0:01:13.2]} 25... Qg4+ {[%clk 0:01:02.3]} 26. Kf1
{[%clk 0:01:05.3]} 26... Qxd1+ {[%clk 0:01:03.1]} 27. Kg2 {[%clk 0:01:06.5]}
27... Qg4+ {[%clk 0:01:04.9]} 28. Kf1 {[%clk 0:01:07.4]} 28... Bf4 {[%clk
0:01:02.4]} 29. Qh3 {[%clk 0:01:02.1]} 29... Qxh3+ {[%clk 0:01:02.3]} 30. Nxh3
{[%clk 0:01:01.7]} 30... Bh6 {[%clk 0:01:01.6]} 31. f4 {[%clk 0:01:01.3]} 31...
Rd8 {[%clk 0:00:59.7]} 32. Ke2 {[%clk 0:01:02]} 32... g6 {[%clk 0:00:58.5]} 33.
Ke3 {[%clk 0:00:58.6]} 33... Bg7 {[%clk 0:00:57.7]} 34. b3 {[%clk 0:00:58.6]}
34... h6 {[%clk 0:00:55.2]} 35. Rc1 {[%clk 0:00:58.1]} 35... c5 {[%clk
0:00:54.4]} 36. Rc4 {[%clk 0:00:59.6]} 36... b5 {[%clk 0:00:53]} 37. Re4 {[%clk
0:00:58.9]} 37... Bd4+ {[%clk 0:00:50.2]} 38. Kf3 {[%clk 0:00:59.5]} 38... c4
{[%clk 0:00:50.4]} 39. bxc4 {[%clk 0:00:57]} 39... bxc4 {[%clk 0:00:52.3]} 40.
Re7 {[%clk 0:00:57.8]} 40... c3 {[%clk 0:00:53]} 41. Rc7 {[%clk 0:00:58.1]}
41... Re8 {[%clk 0:00:50.9]} 42. f5 {[%clk 0:00:55.5]} 42... Re3+ {[%clk
0:00:51.2]} 43. Kg2 {[%clk 0:00:56.7]} 43... g5 {[%clk 0:00:47.4]} 44. Ng1
{[%clk 0:00:53.5]} 44... Rg3+ {[%clk 0:00:47.4]} 45. Kxg3 {[%clk 0:00:52.9]}
45... Be5+ {[%clk 0:00:48.4]} 46. Kf3 {[%clk 0:00:53.7]} 46... Bxc7 {[%clk
0:00:50.3]} 47. Ne2 {[%clk 0:00:49.8]} 47... c2 {[%clk 0:00:51.2]} 48. Ke3
{[%clk 0:00:50.7]} 48... Bf4+ {[%clk 0:00:46.3]} 0-1

[Event "*** Titled Tuesday Blitz"]
[Site "Chess.com"]
[Date "2020.02.04"]
[Round "2"]
[White "CaptainCasanova"]
[Black "IakovUlivar"]
[Result "1-0"]
[WhiteElo "2714"]
[BlackElo "2439"]
[TimeControl "180+2"]
[EndTime "13:24:36 PST"]
[Termination "CaptainCasanova won by resignation"]

1. e4 {[%clk 0:03:01.7]} 1... e5 {[%clk 0:02:58.1]} 2. Nf3 {[%clk 0:03:03]} 2...
Nc6 {[%clk 0:02:58.3]} 3. Bc4 {[%clk 0:03:04.6]} 3... Bc5 {[%clk 0:02:57.9]} 4.
O-O {[%clk 0:03:06.2]} 4... Nf6 {[%clk 0:02:58.2]} 5. d4 {[%clk 0:03:07.8]} 5...
Bxd4 {[%clk 0:02:58.9]} 6. Nxd4 {[%clk 0:03:08.9]} 6... Nxd4 {[%clk 0:02:59.2]}
7. f4 {[%clk 0:03:10.8]} 7... d6 {[%clk 0:02:57.2]} 8. fxe5 {[%clk 0:03:11.4]}
8... dxe5 {[%clk 0:02:59.1]} 9. Bg5 {[%clk 0:03:13]} 9... Be6 {[%clk 0:02:42.7]}
10. Na3 {[%clk 0:03:12.7]} 10... Qe7 {[%clk 0:02:39.7]} 11. c3 {[%clk
0:02:52.8]} 11... Nc6 {[%clk 0:02:39.4]} 12. Kh1 {[%clk 0:02:49.3]} 12... Rg8
{[%clk 0:02:22.1]} 13. Qb3 {[%clk 0:02:09.2]} 13... O-O-O {[%clk 0:02:01.5]} 14.
Bxe6+ {[%clk 0:01:44.6]} 14... fxe6 {[%clk 0:02:03.4]} 15. Qa4 {[%clk
0:01:34.9]} 15... Rgf8 {[%clk 0:01:31.7]} 16. b4 {[%clk 0:01:28.4]} 16... h6
{[%clk 0:00:51.3]} 17. Be3 {[%clk 0:01:29.3]} 17... a6 {[%clk 0:00:44.7]} 18. b5
{[%clk 0:01:30.7]} 18... Nb8 {[%clk 0:00:36.3]} 19. bxa6 {[%clk 0:01:29.7]}
19... Nxa6 {[%clk 0:00:36.4]} 20. Rab1 {[%clk 0:01:30.5]} 20... Qd7 {[%clk
0:00:27]} 21. Nb5 {[%clk 0:01:29.1]} 21... Kb8 {[%clk 0:00:18.1]} 22. Qb3 {[%clk
0:01:03.5]} 22... Ka8 {[%clk 0:00:19]} 23. Nd4 {[%clk 0:00:57.2]} 23... Rb8
{[%clk 0:00:10.2]} 24. Nxe6 {[%clk 0:00:58.4]} 24... Rfe8 {[%clk 0:00:11.2]} 25.
Nc5 {[%clk 0:00:59.8]} 25... Nxc5 {[%clk 0:00:09.5]} 26. Bxc5 {[%clk 0:01:01.7]}
26... b6 {[%clk 0:00:10.2]} 27. Be3 {[%clk 0:01:00.5]} 27... Kb7 {[%clk
0:00:09.1]} 28. c4 {[%clk 0:01:00.7]} 28... Red8 {[%clk 0:00:06.8]} 29. c5
{[%clk 0:01:02]} 29... Qd3 {[%clk 0:00:07.7]} 30. Qf7 {[%clk 0:00:58.3]} 30...
Qxe3 {[%clk 0:00:05.4]} 31. Rxb6+ {[%clk 0:00:59.1]} 31... Kc8 {[%clk
0:00:05.2]} 32. Qe6+ {[%clk 0:00:53.7]} 32... Nd7 {[%clk 0:00:05.3]} 33. Rc6
{[%clk 0:00:48.8]} 33... Qd3 {[%clk 0:00:03.9]} 34. Rg1 {[%clk 0:00:46.3]} 34...
Rb1 {[%clk 0:00:04.2]} 35. h3 {[%clk 0:00:46.5]} 35... Rxg1+ {[%clk 0:00:04.7]}
36. Kxg1 {[%clk 0:00:48.4]} 36... Qd4+ {[%clk 0:00:06.6]} 37. Kh2 {[%clk
0:00:49.4]} 37... Kb7 {[%clk 0:00:08]} 38. Ra6 {[%clk 0:00:37.4]} 38... Nxc5
{[%clk 0:00:09]} 39. Qc6+ {[%clk 0:00:38]} 1-0

[Event "*** Titled Tuesday Blitz"]
[Site "Chess.com"]
[Date "2020.02.04"]
[Round "2"]
[White "lelya96"]
[Black "DonBroca"]
[Result "1-0"]
[WhiteElo "2463"]
[BlackElo "2169"]
[TimeControl "180+2"]
[EndTime "13:24:39 PST"]
[Termination "lelya96 won by resignation"]

1. e4 {[%clk 0:03:00.8]} 1... c5 {[%clk 0:03:00.9]} 2. Nf3 {[%clk 0:03:01.5]}
2... d6 {[%clk 0:03:02.1]} 3. d4 {[%clk 0:03:00.5]} 3... cxd4 {[%clk 0:03:04]}
4. Nxd4 {[%clk 0:03:02.1]} 4... Nf6 {[%clk 0:03:05.6]} 5. Nc3 {[%clk 0:03:02.7]}
5... g6 {[%clk 0:03:07.2]} 6. Bc4 {[%clk 0:03:02.2]} 6... Bg7 {[%clk 0:03:08.8]}
7. Be3 {[%clk 0:03:00]} 7... Nc6 {[%clk 0:03:10.2]} 8. f3 {[%clk 0:03:01]} 8...
O-O {[%clk 0:03:11.1]} 9. Qd2 {[%clk 0:03:02.1]} 9... Bd7 {[%clk 0:03:12.7]} 10.
O-O-O {[%clk 0:03:02.5]} 10... Rc8 {[%clk 0:03:14.1]} 11. Bb3 {[%clk 0:03:03.3]}
11... Ne5 {[%clk 0:03:15]} 12. h4 {[%clk 0:03:03.5]} 12... h5 {[%clk 0:03:14.4]}
13. Kb1 {[%clk 0:03:02.9]} 13... Nc4 {[%clk 0:03:12.2]} 14. Bxc4 {[%clk
0:03:03.4]} 14... Rxc4 {[%clk 0:03:14.1]} 15. Nce2 {[%clk 0:02:49.2]} 15... b5
{[%clk 0:03:07.4]} 16. Bg5 {[%clk 0:02:49.3]} 16... Qb8 {[%clk 0:02:54.5]} 17.
Nb3 {[%clk 0:02:42.9]} 17... Rfc8 {[%clk 0:02:46.6]} 18. Rc1 {[%clk 0:02:42.3]}
18... Qb6 {[%clk 0:02:12.1]} 19. e5 {[%clk 0:02:38.3]} 19... dxe5 {[%clk
0:01:38.9]} 20. Bxf6 {[%clk 0:02:38.1]} 20... Bf5 {[%clk 0:01:39.6]} 21. Bxg7
{[%clk 0:02:33.2]} 21... Rxc2 {[%clk 0:01:37.6]} 22. Rxc2 {[%clk 0:02:23.8]}
22... Rxc2 {[%clk 0:01:38]} 23. Qh6 {[%clk 0:02:24.2]} 23... Rxe2+ {[%clk
0:00:46.4]} 24. Ka1 {[%clk 0:02:23.4]} 24... f6 {[%clk 0:00:43.9]} 25. Qh8+
{[%clk 0:02:23.2]} 25... Kf7 {[%clk 0:00:43.9]} 26. Qf8+ {[%clk 0:02:23.2]}
26... Ke6 {[%clk 0:00:43.5]} 27. Qg8+ {[%clk 0:02:13.7]} 27... Kd7 {[%clk
0:00:39.6]} 28. Rd1+ {[%clk 0:02:10.6]} 28... Kc7 {[%clk 0:00:22.2]} 29. Qd8+
{[%clk 0:02:02.5]} 29... Kb7 {[%clk 0:00:21.5]} 30. Qxe7+ {[%clk 0:01:46.4]}
30... Ka6 {[%clk 0:00:21.7]} 31. Nc5+ {[%clk 0:01:25.2]} 31... Ka5 {[%clk
0:00:22.8]} 32. Nd7 {[%clk 0:01:22.2]} 32... Qd4 {[%clk 0:00:21.3]} 33. Qd8+
{[%clk 0:01:12.4]} 33... Ka4 {[%clk 0:00:20.8]} 34. Rxd4+ {[%clk 0:01:08.4]}
34... exd4 {[%clk 0:00:20.6]} 35. b3+ {[%clk 0:01:04]} 35... Kb4 {[%clk
0:00:20.1]} 36. Qf8+ {[%clk 0:00:57.6]} 36... Kc3 {[%clk 0:00:20.8]} 37. Qc5+
{[%clk 0:00:58.3]} 37... Kd2 {[%clk 0:00:20.2]} 38. Qxd4+ {[%clk 0:00:58.9]}
38... Ke1 {[%clk 0:00:21.5]} 39. Bh6 {[%clk 0:00:52.1]} 39... Kf1 {[%clk
0:00:22.1]} 40. Nxf6 {[%clk 0:00:48.6]} 40... Re1+ {[%clk 0:00:18.3]} 41. Kb2
{[%clk 0:00:49.7]} 41... Rd1 {[%clk 0:00:19.8]} 42. Qxd1+ {[%clk 0:00:49.8]}
42... Kxg2 {[%clk 0:00:20.9]} 1-0

[Event "*** Titled Tuesday Blitz"]
[Site "Chess.com"]
[Date "2020.02.04"]
[Round "2"]
[White "TristanCalistri"]
[Black "Roman_Ovetchkin"]
[Result "0-1"]
[WhiteElo "2256"]
[BlackElo "2670"]
[TimeControl "180+2"]
[EndTime "13:24:41 PST"]
[Termination "Roman_Ovetchkin won by resignation"]

1. e4 {[%clk 0:03:01.9]} 1... c6 {[%clk 0:02:59.9]} 2. Nf3 {[%clk 0:03:00.2]}
2... d5 {[%clk 0:03:01.8]} 3. Nc3 {[%clk 0:03:00.4]} 3... Nf6 {[%clk 0:03:01.3]}
4. e5 {[%clk 0:02:31.3]} 4... Ne4 {[%clk 0:03:01.3]} 5. Ne2 {[%clk 0:02:16.7]}
5... Qb6 {[%clk 0:02:57.2]} 6. d4 {[%clk 0:02:15]} 6... e6 {[%clk 0:02:58.4]} 7.
Ng3 {[%clk 0:02:07.2]} 7... c5 {[%clk 0:02:56]} 8. Bd3 {[%clk 0:01:56.9]} 8...
Nxg3 {[%clk 0:02:54.3]} 9. fxg3 {[%clk 0:01:56.9]} 9... cxd4 {[%clk 0:02:55.9]}
10. O-O {[%clk 0:01:36.9]} 10... Nc6 {[%clk 0:02:50.8]} 11. a3 {[%clk
0:01:25.4]} 11... Be7 {[%clk 0:02:41.9]} 12. b4 {[%clk 0:01:08.1]} 12... a6
{[%clk 0:02:34.1]} 13. Bf4 {[%clk 0:01:02.1]} 13... Bd7 {[%clk 0:02:23.8]} 14.
Qe2 {[%clk 0:00:55.3]} 14... O-O {[%clk 0:02:00.5]} 15. g4 {[%clk 0:00:43.5]}
15... f6 {[%clk 0:01:45.4]} 16. g5 {[%clk 0:00:37.2]} 16... f5 {[%clk
0:01:13.5]} 17. Qf2 {[%clk 0:00:30.5]} 17... Rac8 {[%clk 0:01:06.9]} 18. g6
{[%clk 0:00:25.3]} 18... hxg6 {[%clk 0:00:50.9]} 19. Qg3 {[%clk 0:00:26.1]}
19... Kf7 {[%clk 0:00:50.5]} 20. Nh4 {[%clk 0:00:22.2]} 20... Bxh4 {[%clk
0:00:47.5]} 21. Qxh4 {[%clk 0:00:22.7]} 21... Rh8 {[%clk 0:00:47.6]} 22. Qg3
{[%clk 0:00:23.8]} 22... Nd8 {[%clk 0:00:26.8]} 23. Bg5 {[%clk 0:00:23.9]} 23...
Bb5 {[%clk 0:00:24.2]} 24. h4 {[%clk 0:00:21.1]} 24... Bxd3 {[%clk 0:00:20.5]}
25. cxd3 {[%clk 0:00:22.3]} 25... Rc3 {[%clk 0:00:21.4]} 26. Bxd8 {[%clk
0:00:22.1]} 26... Rxd8 {[%clk 0:00:21.2]} 27. h5 {[%clk 0:00:22.9]} 27... gxh5
{[%clk 0:00:21.8]} 28. Qg5 {[%clk 0:00:23.4]} 28... Rh8 {[%clk 0:00:22.5]} 29.
Rxf5+ {[%clk 0:00:19.3]} 29... exf5 {[%clk 0:00:22.9]} 30. Qxf5+ {[%clk
0:00:21]} 30... Kg8 {[%clk 0:00:21.6]} 31. Rf1 {[%clk 0:00:19.7]} 31... Rh6
{[%clk 0:00:21.3]} 32. Qf7+ {[%clk 0:00:18.1]} 32... Kh7 {[%clk 0:00:22.2]} 33.
Rf6 {[%clk 0:00:05]} 33... Rxf6 {[%clk 0:00:22]} 34. exf6 {[%clk 0:00:06.2]}
34... Qxf6 {[%clk 0:00:22.6]} 35. Qxh5+ {[%clk 0:00:07]} 35... Qh6 {[%clk
0:00:23.7]} 36. Qf5+ {[%clk 0:00:07.5]} 36... Qg6 {[%clk 0:00:23.9]} 37. Qh3+
{[%clk 0:00:08.5]} 37... Kg8 {[%clk 0:00:24.2]} 38. Qe6+ {[%clk 0:00:09.3]}
38... Qxe6 {[%clk 0:00:24.8]} 0-1

[Event "*** Titled Tuesday Blitz"]
[Site "Chess.com"]
[Date "2020.02.04"]
[Round "2"]
[White "PaulfromSPb"]
[Black "Sibelephant"]
[Result "0-1"]
[WhiteElo "2636"]
[BlackElo "3065"]
[TimeControl "180+2"]
[EndTime "13:24:53 PST"]
[Termination "Sibelephant won by checkmate"]

1. d4 {[%clk 0:03:01.9]} 1... Nf6 {[%clk 0:02:59.9]} 2. Bf4 {[%clk 0:03:02.7]}
2... g6 {[%clk 0:03:00]} 3. e3 {[%clk 0:03:02.9]} 3... Bg7 {[%clk 0:03:01]} 4.
Nd2 {[%clk 0:03:04]} 4... O-O {[%clk 0:03:01.6]} 5. h3 {[%clk 0:03:05.3]} 5...
c5 {[%clk 0:03:01.6]} 6. c3 {[%clk 0:03:05.5]} 6... b6 {[%clk 0:03:00.9]} 7.
Ngf3 {[%clk 0:03:06.1]} 7... Bb7 {[%clk 0:03:01.9]} 8. Be2 {[%clk 0:03:06]} 8...
d6 {[%clk 0:03:02.4]} 9. O-O {[%clk 0:03:06.8]} 9... Nbd7 {[%clk 0:03:01.1]} 10.
a4 {[%clk 0:03:07.2]} 10... a6 {[%clk 0:03:02]} 11. Bh2 {[%clk 0:03:05.9]} 11...
cxd4 {[%clk 0:03:01.3]} 12. exd4 {[%clk 0:03:04.9]} 12... Qc7 {[%clk 0:03:02.1]}
13. Re1 {[%clk 0:03:05.8]} 13... Rfe8 {[%clk 0:03:02.7]} 14. Bf1 {[%clk
0:03:01.5]} 14... Bh6 {[%clk 0:03:00.9]} 15. Nc4 {[%clk 0:03:00.1]} 15... Nd5
{[%clk 0:02:59.9]} 16. Qb3 {[%clk 0:02:49.9]} 16... Rab8 {[%clk 0:02:57.2]} 17.
Ne3 {[%clk 0:02:29.9]} 17... Nxe3 {[%clk 0:02:55.8]} 18. fxe3 {[%clk 0:02:31.8]}
18... Bxf3 {[%clk 0:02:55.5]} 19. gxf3 {[%clk 0:02:33.7]} 19... Qb7 {[%clk
0:02:50.7]} 20. Bg2 {[%clk 0:02:33]} 20... Nf6 {[%clk 0:02:47.3]} 21. Bg3 {[%clk
0:02:25.4]} 21... Qc8 {[%clk 0:02:30.3]} 22. Bf1 {[%clk 0:02:08.7]} 22... Qf5
{[%clk 0:02:27.8]} 23. Qd1 {[%clk 0:02:02.1]} 23... e5 {[%clk 0:02:10.9]} 24.
Bf2 {[%clk 0:01:25.8]} 24... exd4 {[%clk 0:01:59.7]} 25. cxd4 {[%clk 0:01:26]}
25... d5 {[%clk 0:01:34.9]} 26. Ra3 {[%clk 0:01:25.6]} 26... b5 {[%clk
0:01:29.4]} 27. axb5 {[%clk 0:01:25.4]} 27... axb5 {[%clk 0:01:30.8]} 28. Kg2
{[%clk 0:01:18.4]} 28... Re7 {[%clk 0:01:21.5]} 29. Bd3 {[%clk 0:01:15.7]} 29...
Qg5+ {[%clk 0:01:22]} 30. Kh2 {[%clk 0:01:16.6]} 30... Qh5 {[%clk 0:01:16.9]}
31. Rb3 {[%clk 0:01:02.6]} 31... b4 {[%clk 0:01:13.4]} 32. Kg2 {[%clk
0:01:01.1]} 32... Bf8 {[%clk 0:00:52.7]} 33. Bf1 {[%clk 0:00:43.2]} 33... Rc7
{[%clk 0:00:48.7]} 34. e4 {[%clk 0:00:35.3]} 34... dxe4 {[%clk 0:00:47.8]} 35.
fxe4 {[%clk 0:00:37.2]} 35... Qxd1 {[%clk 0:00:48.4]} 36. Rxd1 {[%clk
0:00:38.3]} 36... Nxe4 {[%clk 0:00:49.9]} 37. Be3 {[%clk 0:00:36.8]} 37... Bd6
{[%clk 0:00:48.1]} 38. Kf3 {[%clk 0:00:35.3]} 38... f5 {[%clk 0:00:46.6]} 39.
Rbd3 {[%clk 0:00:28.7]} 39... Rc2 {[%clk 0:00:46.3]} 40. Rb1 {[%clk 0:00:26.6]}
40... Re8 {[%clk 0:00:44.9]} 41. Rb3 {[%clk 0:00:14.3]} 41... f4 {[%clk
0:00:37.5]} 42. Bd3 {[%clk 0:00:14.5]} 42... Ng5+ {[%clk 0:00:38.4]} 43. Kg4
{[%clk 0:00:15.5]} 43... Rg2+ {[%clk 0:00:39.9]} 44. Kh4 {[%clk 0:00:15.6]}
44... Nf3# {[%clk 0:00:40.6]} 0-1